Cogmind - Beta 16.1 @@@ ROGUE MODE // 2026.04.20 @ 03:09:27 Player: PopcornMaze Result: Destroyed by YI-UF0 with YI-UF0's Doublenader Performance ------------- Evolutions (0) 0 Regions Visited (2) 400 Robots Destroyed (15) 75 Value Destroyed (344) 344 Prototype IDs (2) 40 Alien Tech Used (0) 0 Bonus (0) 0 TOTAL SCORE: 859 Bonus ------- None Cogmind --------- Core Integrity 0/250 Matter 104/300 Energy 100/100 System Corruption 0% Temperature Cool (0) Movement Rolling (200) Ox8 Location -10/Mines Parts ------- > --- POWER (1) -------- (None) > --- PROPULSION (2) --- Wheel > --- UTILITY (2) ------ Huge Storage Unit Advanced Targeting Computer > --- WEAPON (2) ------- Missile Launcher > --- INVENTORY (25) --- Advanced Treads Wheel Improved Heat Sink Improved Sensor Array Improved Signal Interpreter Advanced Targeting Computer Hacking Suite EM Shotgun EM Shotgun EM Shotgun Shotgun Shotgun Shotgun Peak State ------------ > --- POWER ------------ Ion Engine > --- PROPULSION ------- Wheel > --- UTILITY ---------- Huge Storage Unit Advanced Targeting Computer > --- WEAPON ----------- Shotgun Missile Launcher > --- INVENTORY -------- Advanced Treads Wheel Improved Heat Sink Improved Sensor Array Improved Signal Interpreter Advanced Targeting Computer Hacking Suite EM Shotgun EM Shotgun EM Shotgun Shotgun Shotgun Shotgun [Rating: 14] Favorites ----------- Power Ion Engine Engine Ion Engine Propulsion Light Treads Treads Light Treads Wheel Wheel Utility Huge Storage Unit Storage Huge Storage Unit Processor Targeting Computer Weapon Shotgun Ballistic Gun Shotgun Launcher Grenade Launcher Build | -11 -10 -10 ------- Run | Yrd Mat Min Slots Evolved . | . . . Power . | . . . Propulsion . | . . . Utility . | . . . Weapon . | . . . Parts Attached 20 | 6 9 5 Power 3 | 1 2 . Engine 3 | 1 2 . Core . | . . . Reactor . | . . . Propulsion 6 | 2 2 2 Treads 2 | 2 . . Leg . | . . . Wheel 4 | . 2 2 Hover . | . . . Flight . | . . . Utility 5 | 1 3 1 Device . | . . . Storage 3 | 1 2 . Processor 2 | . 1 1 Hackware . | . . . Protection . | . . . Artifact . | . . . Weapon 6 | 2 2 2 Energy Gun . | . . . Energy Cannon . | . . . Ballistic Gun 4 | 2 2 . Ballistic Cannon . | . . . Launcher 2 | . . 2 Special Weapon . | . . . Impact Weapon . | . . . Slashing Weapon . | . . . Piercing Weapon . | . . . Special Melee Weapon . | . . . Unidentified Prototypes . | . . . Parts Lost 6 | . 2 4 Power 3 | . 2 1 Propulsion 1 | . . 1 Utility . | . . . Weapon 2 | . . 2 Highest Loss Streak 4 | . 1 4 To Critical Strikes . | . . . Average Backups 8 | 2 7 12 Power . | . . . Propulsion 1 | 1 1 1 Utility 1 | . . 4 Weapon 5 | . 5 6 Tool/Special . | . . . Unused Backups 20 | . 9 11 Power . | . . . Propulsion 2 | . 1 1 Utility 11 | . 6 5 Weapon 7 | . 2 5 Tool/Special . | . . . Average Slot Usage (%) 94 | . 93 99 Engine 13 | . 13 14 Treads 17 | . 22 . Wheel 10 | . 5 27 Storage 15 | . 15 14 Processor 8 | . 6 14 Ballistic Gun 25 | . 28 15 Launcher 2 | . . 12 Peak Build Rating 14 | 6 10 14 Average Rating 9 | 4 8 12 On Entrance 5 | . 6 10 Avg Prop Armor Cover (%) . | . . . Naked Turns . | . . . Heaviest Build 91 | 11 91 91 Greatest Support 40 | 40 40 26 Greatest Overweight (x) 4 | . 3 4 Average Overweight (x) 1 | . . 3 Largest Inventory Capacity 25 | 8 25 25 Average Capacity 17 | 7 15 25 Most Carried 14 | 4 13 14 Average Carried 8 | 2 7 12 Final Capacity 25 | 8 25 25 Final Carried 13 | 4 6 13 Class Distribution -------------------- 100% | Mutant Dominant Class ---------------- Mutant | -10/Materials Mutant | -10/Mines Resources | -11 -10 -10 ----------- Run | Yrd Mat Min Matter Collected 360 | . 209 151 Remotely . | . . . Salvage Created 358 | . 177 181 Parts 27 | . 13 14 Haulers Intercepted . | . . . Recyclers Shooed . | . . . Parts Field Recycled . | . . . Retrieved Matter . | . . . Parts Self-Destructed . | . . . Prevented . | . . . Parts Restored . | . . . Kills | -11 -10 -10 ------- Run | Yrd Mat Min Combat Hostiles Destroyed 11 | . 8 3 Melee 1 | . 1 . Guns 9 | . 7 2 AOE 1 | . . 1 Classes Destroyed 6 | . 2 4 Worker 1 | . . 1 Builder 1 | . . 1 Tunneler 1 | . . 1 Recycler 1 | . . 1 Swarmer 3 | . 3 . Grunt 8 | . 5 3 Best Kill Streak 6 | . 4 6 Combat Bots Only 4 | . 4 3 Max Kills in Single Turn 4 | . 1 4 Gunslinging . | . . . Exploded 1 | . . 1 Melee 1 | . 1 . Uniques/NPCs Destroyed . | . . . Combat | -11 -10 -10 -------- Run | Yrd Mat Min Hostile Shots Fired 80 | . 65 15 Missed 16 | . 13 3 Hits 64 | . 52 12 Projectile 64 | . 52 12 AOE 13 | . 1 12 Damage Taken 1048 | . 625 423 Core 252 | . 162 90 Absorbed by Shields . | . . . Regen/Repaired (Parts) 172 | . 172 . Core Remaining (%) 100 | 100 . . Volleys Fired 28 | . 21 7 Largest 2 | . 2 2 Hottest 59 | . 46 59 Shots Fired 55 | . 42 13 Gun 48 | . 42 6 Cannon . | . . . Launcher 7 | . . 7 Special . | . . . Kinetic 48 | . 42 6 Thermal . | . . . Explosive 7 | . . 7 Electromagnetic . | . . . Robot Hit Streak 5 | . 5 5 Robot Miss Streak 3 | . 3 2 Penetration Max . | . . . Secondary Targets 1 | . 1 . Max Gunslinging Chain 1 | . 1 . Shots Hit Robots 37 | . 27 10 Core Hits 25 | . 13 12 Critical Kills . | . . . Critical Parts Destroyed 1 | . 1 . Critical Strikes 1 | . 1 . Destroy 1 | . 1 . Melee Attacks . | . . . Impact . | . . . Slashing . | . . . Piercing . | . . . Sneak Attacks . | . . . Combat Hostiles . | . . . Follow-up Attacks . | . . . Damage Inflicted 690 | . 311 379 Guns 377 | . 302 75 Cannons . | . . . Explosions 304 | . . 304 Melee . | . . . Ramming 9 | . 9 . Kinetic 377 | . 302 75 Thermal . | . . . Explosive 304 | . . 304 Electromagnetic . | . . . Impact . | . . . Slashing . | . . . Piercing . | . . . Highest Corruption . | . . . Average Corruption . | . . . Corruption Purged . | . . . Corruption Blocked . | . . . Overload Shots . | . . . Overflow Damage . | . . . Projectiles . | . . . Explosions . | . . . Melee . | . . . Knockbacks 1 | . 1 . Impact 1 | . 1 . Kinetic . | . . . Secondary . | . . . Self-Inflicted Damage 13 | . . 13 Shots 1 | . . 1 Rammed 7 | . 7 . Targets Rammed 8 | . 8 . Kicked . | . . . Crushed 1 | . 1 . Highest Temperature 6 | . 6 3 Average Temperature 4 | . 4 3 Received Heat Transfer 234 | . 228 6 Siege Activations . | . . . Martial Activations . | . . . Shielding Activations . | . . . Robots Disrupted . | . . . Combat Hostiles . | . . . Robots Corrupted . | . . . Combat Hostiles . | . . . Parts Fried . | . . . Impact Corruptions . | . . . Robots Melted . | . . . Combat Hostiles . | . . . Parts Melted . | . . . Heat Transferred . | . . . Parts Sabotaged . | . . . Parts Stolen . | . . . Parts Stripped . | . . . Power Chain Reactions . | . . . Alert | -11 -10 -10 ------- Run | Yrd Mat Min Maximum Alert Level . | . . . Low Security (%) 100 | 100 100 100 Level 1 . | . . . Level 2 . | . . . Level 3 . | . . . Level 4 . | . . . Level 5 . | . . . High Security . | . . . Max Security . | . . . Peak Influence 111 | . 75 111 Initial . | . . . Average 21 | . 17 42 Influence Increases 331 | . 213 118 Destroy 0b10 Robot/C 220 | . 160 60 Destroy 0b10 Robot/NC 20 | . . 20 Destroy Leader 50 | . 30 20 Successful Hack 8 | . 8 . Disable Machine 15 | . 15 . Destroy Structure 18 | . . 18 Influence Decreases 331 | . 213 118 Time Decay 304 | . 193 111 Lost Part 27 | . 20 7 Squads Dispatched 5 | . 4 1 Investigation 4 | . 3 1 Extermination . | . . . Reinforcement 1 | . 1 . Assault . | . . . Garrison . | . . . Intercept . | . . . Searches Triggered . | . . . Construction Impeded . | . . . Haulers Reinforced . | . . . Active Scanning Responses . | . . . Cargo Convoy Interrupts . | . . . Stealth | -11 -10 -10 --------- Run | Yrd Mat Min Distress Signals 1 | . 1 . Communications Jammed . | . . . Distress Signals . | . . . Times Spotted 17 | . 13 4 Peak Tracking Total 5 | . 5 3 Tactical Retreats . | . . . Traps | -11 -10 -10 ------- Run | Yrd Mat Min Traps Triggered 1 | . 1 . Indirectly . | . . . Trap Hack Attempts . | . . . Triggered . | . . . Disarmed 6 | . 6 . Reprogrammed . | . . . Reused . | . . . Traps Extracted . | . . . Installed . | . . . Triggered . | . . . Machines | -11 -10 -10 ---------- Run | Yrd Mat Min Machines Disabled 1 | . 1 . Max in Single Turn 1 | . 1 . Machines Repaired . | . . . Machines Dismantled . | . . . Machines Sabotaged . | . . . Overloaded Fab Kills . | . . . Hacking | -11 -10 -10 --------- Run | Yrd Mat Min Machines Accessed 7 | . 6 1 Terminals 4 | . 4 . Fabricators . | . . . Repair Stations 1 | . 1 . Recycling Units 1 | . 1 . Scanalyzers . | . . . Garrison Access . | . . . Total Hacks 19 | . 18 1 Successful 13 | . 12 1 Failed 6 | . 6 . Catastrophic 1 | . 1 . Database Lockouts . | . . . Manual 1 | . 1 . Terminals 8 | . 8 . Fabricators . | . . . Repair Stations 3 | . 3 . Recycling Units 7 | . 7 . Scanalyzers . | . . . Garrison Access . | . . . Terminal Hacks 3 | . 2 1 Prototype ID Bank 1 | . 1 . Open Door 1 | . . 1 Disarm Traps 1 | . 1 . Fabricator Hacks . | . . . Repair Station Hacks 3 | . 3 . Scan Component 2 | . 2 . Repair 1 | . 1 . Recycling Unit Hacks 6 | . 6 . Recycle Component 5 | . 5 . Retrieve Components 1 | . 1 . Scanalyzer . | . . . Garrison Access Hacks . | . . . Unauthorized Hacks 1 | . 1 . Terminals 1 | . 1 . Botnet 1 | . 1 . Fabricators . | . . . Repair Stations . | . . . Recycling Units . | . . . Scanalyzers . | . . . Garrison Access . | . . . Data Cores Recovered . | . . . Used . | . . . Hacking Detections 5 | . 5 . Full Trace Events 2 | . 2 . Feedback Events . | . . . Feedback Blocked . | . . . Robot Schematics Acquired . | . . . Robots Built . | . . . Authchips . | . . . Time . | . . . Total Robot Build Rating . | . . . Part Schematics Acquired . | . . . Parts Built . | . . . Authchips . | . . . Time . | . . . Total Part Build Rating . | . . . Part Studies Acquired . | . . . Parts Repaired 1 | . 1 . Time 26 | . 26 . Parts Recycled 5 | . 5 . Recycled Matter . | . . . Retrieved Matter . | . . . Retrieved Components 2 | . 2 . Parts Scanalyzed . | . . . Part Schematics Acquired . | . . . Parts Damaged . | . . . Bothacking | -11 -10 -10 ------------ Run | Yrd Mat Min Used RIF Installer . | . . . Robots Hacked . | . . . Non-combat . | . . . Combat . | . . . Robot Hacks Applied . | . . . Relay Couplers Released . | . . . Fabnet Peak Effective % . | . . . Robots Rewired . | . . . Allies Hacked . | . . . Hacks Repelled . | . . . Allies | -11 -10 -10 -------- Run | Yrd Mat Min Total Allies . | . . . Largest Group . | . . . Highest-Rated Group . | . . . Highest-Rated Ally . | . . . Total Orders . | . . . Ally Attacks . | . . . Total Damage . | . . . Kills . | . . . Allies Corrupted . | . . . Allies Melted 1 | . . 1 Intel | -11 -10 -10 ------- Run | Yrd Mat Min Active Infowar (turns) . | . . . Robot Analysis Total . | . . . Derelict Logs Recovered . | . . . Drone Launches . | . . . Drone Recoveries . | . . . Exploration | -11 -10 -10 ------------- Run | Yrd Mat Min Turns Passed 1246 | 66 901 279 Spaces Moved 649 | 36 437 176 Core 3 | 3 . . Treads 348 | 33 315 . Legs . | . . . Wheels 298 | . 122 176 Hover . | . . . Flight . | . . . Fastest Speed 50 | 50 135 135 Average Speed 157 | 150 165 138 Slowest Speed 320 | 160 320 140 Overloaded Moves . | . . . Propulsion Burnouts . | . . . Robots Hopped . | . . . Potential Cave-ins . | . . . Cave-ins Triggered . | . . . Exploration Rate (%) 33 | 4 50 46 Regions Visited 2 Branch Regions 1 Pre-discovered Areas . | . . . Known Exits Taken . | . . . Unknown Exits Taken 2 | 1 1 . Scrap Searched 1 | . . 1 Spaces Dug . | . . . Terrain Destroyed 29 | . . 29 Melee . | . . . Projectile . | . . . AOE 29 | . . 29 Terrain Rammed . | . . . Walls Destroyed . | . . . Machines Disabled . | . . . Actions | -11 -10 -10 --------- Run | Yrd Mat Min Total 801 | 45 560 196 Wait 55 | . 55 . Move 647 | 35 436 176 Hop . | . . . Pick Up 31 | 4 20 7 Fast Attach 11 | 6 4 1 Attach 2 | . 1 1 Detach . | . . . Swap 8 | . 5 3 Drop 11 | . 10 1 Fire 28 | . 21 7 Melee . | . . . Ram . | . . . Kick . | . . . Crush 8 | . 8 . Escape Stasis . | . . . Rewire . | . . . Trap . | . . . Miscellaneous . | . . . Route ------- -11/Scrapyard -10/Materials (discovered 2 exits: [*Mat] / *Min) -10/Mines (discovered 1 exit: [*Mat]) History --------- Turn | Location | Event 30 | -11/Scrapyard | Discovered new exit (range 15) 67 | -11/Scrapyard | Entered Materials 113 | -10/Materials | Discovered new exit (range 13) 172 | -10/Materials | Discovered new exit (range 14) 307 | -10/Materials | Build established: Mutant 423 | -10/Materials | Repaired Med. Storage Unit 673 | -10/Materials | Core integrity fell below 50% 968 | -10/Materials | Entered Mines 974 | -10/Mines | Met a Derelict shopkeep closing up shop 1033 | -10/Mines | Discovered new exit (range 9) 1244 | -10/Mines | Core integrity fell below 20% 1247 | -10/Mines | Destroyed by YI-UF0 with YI-UF0's Doublenader Last Messages --------------- 01201_ U-05 Engineer builds a Wall. 01219_ U-05 Engineer lays Concrete. 01220_ Acquired 5 matter. 01220_ U-05 Engineer lays Concrete. 01222_ U-05 Engineer builds a Wall. 01223_ U-05 Engineer lays Concrete. 01227_ U-05 Engineer builds a Wall. 01229_ U-05 Engineer lays Concrete. 01237_ Wheel destroyed. 01237_ U-05 Engineer lays Concrete. 01238_ T-07 Excavator destroyed. 01239_ U-05 Engineer lays Concrete. 01241_ Grenade Launcher destroyed. 01242_ U-05 Engineer lays Concrete. 01243_ Ion Engine destroyed. 01244_ U-05 Engineer lays Concrete. 01245_ YI-UF0: "KABOOM!" 01245_ U-05 Engineer destroyed. 01245_ Shotgun destroyed. 01246_ U-05 Engineer lays Concrete. Map ----- +----------------------------------------------------+ | | | | | | | | | | | | | | | | | | | ?????????????????????????????????????????????????? | | ?????????????????????????????????????????????????? | | ?????????????????????????????????????????????????? | | ??????????????????????????????# ????????????????? | | ??????????????????????#????### ??????????????? | | ?????????????????????? ???# = ????????????? | | ?????????????????????? #?# ?????????????? | | ?????????????????????? # ??????????????? | | ??????????????????????? * #??????????????? | | ??????????????????????? g ##?????????????? | | ??????????????????????? ?#????????????? | | ???????????????????????# # ?????????????? | | ?????????????????????### ???????????????? | | ????????????????????## ?????????????????? | | ????????????????????# #??????????????????? | | ??????????????????#### #??????????????????? | | ??????????????????# @ #??????????????????? | | ??????????????????# ## ##?????????????????? | | ?????????????????????# ##????????????????? | | ?????????????????????# u #????????????????? | | ?????????????????????# ##????????????????? | | ?????????????????????## ##?????????????????? | | ??????????????????????## = ##?????????????????? | | ???????????????????????# #?????????????????? | | ???????????????????????# !=#?????????????????? | | ???????????????????????## #* ##????????????????? | | ?????????????????????????#### #????????????????? | | ??????????????????????????# ## #????????????????? | | ??????????????????????????##### ##???????????????? | | ???????????????????????????## ##???????????????? | | ????????????????????######## #???????????????? | | ???????????????????## #???????????????? | | ???????????????????# #???????????????? | | ???????????????????# ##???????????????? | | ???????????????????## #????????????????? | | ????????????????????## #????????????????? | | ?????????????????????# ## #????????????????? | | ??????????????######## #### #????????????????? | | ??????????????#""""""# ##??# #????????????????? | | ??????????????# # #???## #???????????????? | | ??????????????## ## #????## ? ??????????? | +----------------------------------------------------+ Best States ------------- Heat Dissipation 25 Energy Generation 10 Energy Capacity 250 Matter Stores 152 Matter Capacity 300 Sight Range 16 Terrain Scan Density 10 Evasion (%) 40 Targeting Accuracy 8 Recoil Reduction 2 Item Schematics ----------------- None Robot Schematics ------------------ None Fabricated ------------ Nothing Repaired ---------- Med. Storage Unit | 31% | -10/Materials Studied --------- None Alien Tech Used ----------------- None Achievements -------------- None Challenges ------------ None Game ------ Seed WeldingDoorTendrils Manual? 0 Play Time 00:11:32 Cumulative 14.5 hours Start 2026.04.20 @ 02:59:34 End 2026.04.20 @ 03:09:27 Sessions 1 Manual Loads 0 Difficulty Rogue Special Mode None Game No. 24 Rogue 24 Adventurer 0 Explorer 0 Win Type - Total 0 Types 0/0/0/0/0/0/0/0/0/0 Lore% 5 Gallery% 17 Achievement% 19 Wizard Run 0 Options --------- Layout 1 ASCII 0 Keyboard 0 Movement Numpad Keybinds 0 Fullscreen 1 Font 32/SmallcapsGlow Map View 50x35 Zoom Use 0% Tactical HUD 1 Map Filters NONE Filters NONE Steam 1 RUN: 2eba256f-c29b-4ccd-bc8b-8936471ed286